Cogmind - Beta 14 *** ADVENTURER MODE // 2024.08.29 @ 15:58:15 Player: AnotherZach Result: Destroyed by Y-72 Warden with Quantum Rifle Performance ------------- Evolutions (7) 3500 Regions Visited (27) 5400 Robots Destroyed (362) 1810 Value Destroyed (17604) 17604 Prototype IDs (67) 1340 Alien Tech Used (2) 400 Bonus (11756) 11756 TOTAL SCORE: 41810 Bonus ------- Triggered Max Security 1000 High Alert Combat Kills 2784 Follower Combat Kills 5956 Entered Garrisons 1000 Used RIF Installer 2500 Aligned with FarCom 300 Met Zhirov 300 Friendly Fire -2084 Cogmind --------- Core Integrity 0/1300 Matter 37/300 Energy 88/100 System Corruption 14% Temperature Cool (9) Movement Flying (32) Location -3/Quarantine Parts ------- > --- POWER (3) -------- (None) > --- PROPULSION (5) --- Cesium-ion Thruster Electron Diverter > --- UTILITY (9) ------ Improved Launcher Guidance Computer > --- WEAPON (4) ------- Vibroblade > --- INVENTORY (5) ---- Improved Coolant Injector Centrium Medium Armor Plating Advanced Hacking Suite Subatomic Replicator Peak State ------------ > --- POWER ------------ Antimatter Reactor Antimatter Reactor Light Quantum Reactor > --- PROPULSION ------- Flexi-carbon Leg Myomer Leg Advanced Myomer Leg Advanced Myomer Leg Advanced Myomer Leg > --- UTILITY ---------- Improved Coolant Injector High-capacity Storage Unit Enhanced Optical Array Advanced Targeting Computer Improved Launcher Guidance Computer Medium Reflective Plating Advanced Thermal Shield Improved Remote Force Field Advanced Corruption Screen > --- WEAPON ----------- Dispersion Rifle Railgun Railgun Advanced Remote Datajack > --- INVENTORY -------- Fusion Reactor Myomer Leg Advanced Heat Sink Improved Matter Compressor Advanced Transmission Jammer Hardened Heavy Armor Plating Advanced Hacking Suite Relay Coupler [NC] Relay Coupler [NC] High-powered Tractor Beam Transdimensional Reconstructor Guided Missile Launcher Neutron Missile Launcher Neutron Missile Launcher Advanced Remote Datajack Vibroblade [Rating: 146] Favorites ----------- Power Antimatter Reactor Engine Hybrid Deuterium Engine Power Core Light Nuclear Core Reactor Antimatter Reactor Propulsion Light Treads Treads Light Treads Leg Flexi-carbon Leg Wheel Wheel Hover Unit Aerolev Unit Flight Unit Field Propulsion Drive Utility High-capacity Storage Unit Device Advanced Heat Sink Storage High-capacity Storage Unit Processor Advanced Targeting Computer Hackware Relay Coupler [NC] Protection Improved Weapon Shielding Weapon Remote Datajack Energy Gun Enhanced Force Rifle Energy Cannon Nova Cannon Ballistic Gun AWS/Gauss Ballistic Cannon Gauss Cannon Launcher Precision Rocket Launcher Special Weapon Remote Datajack Slashing Weapon Vibroblade Special Melee Weapon Improved Datajack Build | -11 -10 -10 -9 -9 -9 -8 -8 -8 -7 -7 -7 -7 -6 -6 -6 -6 -5 -5 -5 -5 -4 -4 -4 -4 -3 -3 -3 ------- Run | Yrd Mat Min Mat Min Exi Min Mat Gar Fac Was Fac Gar Fac Gar Fac Gar Fac Was Fac Gar Fac Upp Upp Zhi Pro Res Qua Slots Evolved 14 | . . . 2 . . . 2 . 2 . . . 2 . . . 2 . . . 2 . . . . 2 . Power 2 | . . . . . . . . . . . . . 1 . . . . . . . . . . . . 1 . Propulsion 3 | . . . 1 . . . 1 . . . . . . . . . . . . . 1 . . . . . . Utility 7 | . . . 1 . . . 1 . 1 . . . 1 . . . 2 . . . . . . . . 1 . Weapon 2 | . . . . . . . . . 1 . . . . . . . . . . . 1 . . . . . . Parts Attached 545 | 8 6 2 26 11 2 2 29 28 3 5 21 17 25 36 37 24 32 2 38 19 66 14 12 11 14 35 20 Power 54 | 1 1 1 2 2 . . 2 1 . . 2 3 2 6 2 2 2 . 5 1 8 2 2 2 . 3 2 Engine 25 | 1 . 1 2 2 . . 2 . . . 2 3 2 4 1 . . . 2 1 1 . . . . 1 . Core 14 | . 1 . . . . . . 1 . . . . . 2 . . 2 . 3 . 5 . . . . . . Reactor 15 | . . . . . . . . . . . . . . . 1 2 . . . . 2 2 2 2 . 2 2 Propulsion 113 | 2 2 . 8 3 . 2 13 9 1 3 3 3 5 3 . 4 6 1 12 3 16 3 1 3 1 2 4 Treads 39 | . 2 . 6 . . . 8 4 . 3 3 3 . . . 4 3 1 . . . . . . . 1 1 Leg 54 | . . . . . . . . 5 1 . . . 5 3 . . . . 12 3 16 3 1 3 1 1 . Wheel 15 | 2 . . 2 3 . 2 4 . . . . . . . . . 2 . . . . . . . . . . Hover 1 | . . . . . . . 1 . . . . . . . . . . . . . . . . . . . . Flight 4 | . . . . . . . . . . . . . . . . . 1 . . . . . . . . . 3 Utility 209 | 2 3 . 6 2 1 . 6 8 1 1 11 6 13 15 26 8 17 1 10 9 21 7 5 6 4 16 4 Device 76 | 1 . . 2 . . . 2 . . 1 5 3 3 9 5 3 2 . 5 4 10 5 3 1 3 8 1 Storage 15 | 1 1 . . . 1 . . . . . . . . 1 1 1 1 . 1 1 . 1 . 2 1 2 . Processor 14 | . . . 1 . . . 1 . . . . . 1 1 1 1 . 1 3 . 1 1 . . . 2 . Hackware 67 | . . . . . . . 1 4 . . 5 2 6 2 18 3 14 . . 3 4 . 1 . . 3 1 Protection 37 | . 2 . 3 2 . . 2 4 1 . 1 1 3 2 1 . . . 1 1 6 . 1 3 . 1 2 Artifact . | . . . . . . . . . . . . . . . . . . . . . . . . . . . . Weapon 169 | 3 . 1 10 4 1 . 8 10 1 1 5 5 5 12 9 10 7 . 11 6 21 2 4 . 9 14 10 Energy Gun 51 | . . 1 2 . . . 6 . . . . 3 2 7 4 4 . . 9 3 7 . 1 . . 2 . Energy Cannon 7 | . . . 2 . . . . . . . . . . . . 1 . . . 1 3 . . . . . . Ballistic Gun 41 | 3 . . 4 3 1 . 2 5 . 1 1 . 1 2 1 3 3 . . . 3 2 . . . 5 1 Ballistic Cannon 14 | . . . . . . . . 2 . . 3 2 1 . . . . . . . 2 . 2 . 2 . . Launcher 22 | . . . 2 1 . . . 1 . . 1 . . . 1 . 1 . . . 1 . . . 6 4 4 Special Weapon 29 | . . . . . . . . 1 1 . . . 1 3 3 2 3 . 2 2 4 . 1 . . 3 3 Impact Weapon . | . . . . . . . . . . . . . . . . . . . . . . . . . . . . Slashing Weapon 4 | . . . . . . . . . . . . . . . . . . . . . 1 . . . 1 . 2 Piercing Weapon . | . . . . . . . . . . . . . . . . . . . . . . . . . . . . Special Melee Weapon 1 | . . . . . . . . 1 . . . . . . . . . . . . . . . . . . . Unidentified Prototypes 38 | . . . 3 . . . 4 . . . . 1 1 7 . 4 1 . . . 4 . . 6 3 . 4 Corrupted Parts 2 | . . . . . . . . 2 . . . . . . . . . . . . . . . . . . . System Corruption 9 | . . . . . . . . 9 . . . . . . . . . . . . . . . . . . . Parts Lost 81 | . . . 2 7 . . 1 4 . . 2 3 . 3 . 1 11 1 5 2 11 . . . 2 4 22 Power 15 | . . . 1 1 . . . . . . 1 1 . 3 . . 1 . . . 2 . . . . 1 4 Propulsion 27 | . . . 1 3 . . 1 2 . . . 1 . . . . 4 . 2 1 4 . . . 1 1 6 Utility 21 | . . . . 1 . . . 1 . . 1 1 . . . . 4 1 1 1 3 . . . 1 . 6 Weapon 18 | . . . . 2 . . . 1 . . . . . . . 1 2 . 2 . 2 . . . . 2 6 Highest Loss Streak 12 | . . . 2 5 . . 1 1 . . 1 1 . 3 . 1 9 1 2 1 5 . . . 1 2 12 To Critical Strikes 1 | . . . . . . . . . . . . . . . . . . . . . . . . . . . 1 Average Slot Usage (%) 92 | . 100 100 98 95 100 100 98 96 99 93 92 97 89 88 90 91 79 1 64 98 97 99 94 93 98 96 40 Engine 4 | . 10 . 11 10 11 11 9 5 . . 5 7 11 10 5 1 . . . 3 2 . . . . 1 . Core 2 | . 3 13 . . . . . 3 7 7 1 . . 2 1 . 2 . 7 6 6 3 . . . . . Reactor 2 | . . . . . . . . . . . . . . . 4 11 6 . . . . 6 10 10 10 12 . Treads 12 | . 23 28 29 20 . . 30 21 . 15 24 29 3 . . 20 16 . . . . . . . . . . Leg 13 | . . . . . . . . 11 30 14 5 . 22 26 26 5 . . 18 23 25 26 26 26 25 22 8 Wheel 1 | . 4 . 2 9 33 33 3 . . . . . . . . . 2 . . . . . . . . . . Device 11 | . 2 . 8 6 . . 6 5 . 7 7 11 . 19 16 15 11 . 7 18 17 22 16 13 19 19 3 Storage 7 | . 14 14 11 11 11 11 9 9 7 7 7 7 6 6 6 6 5 . 3 5 5 6 5 5 5 4 2 Processor 6 | . . . 4 11 11 11 13 6 . . . . 5 2 1 5 4 . 4 12 7 11 10 10 10 13 11 Hackware 4 | . . . . . . . . 5 15 7 10 10 13 . 10 4 9 . . 4 5 . . . . . 4 Protection 5 | . 11 14 8 4 11 11 6 8 14 15 10 4 8 3 . . . . 2 2 4 . 4 6 5 1 . Energy Gun 5 | . . . 11 . . . 10 3 . . . 12 2 10 5 9 3 . 14 12 13 5 5 5 . . . Ballistic Gun 6 | . 28 27 4 8 22 22 6 9 . 5 3 . 4 3 3 3 5 . . . 1 14 11 10 2 7 1 Ballistic Cannon 1 | . . . . . . . . 2 15 3 5 2 . . . . . . . . 1 . 3 5 1 . . Special Weapon 2 | . . . . . . . . 2 6 7 7 7 5 . 4 3 4 . . 2 . . . . . . 1 Peak Build Rating 146 | 7 11 18 23 24 25 25 36 39 45 53 51 45 73 101 98 115 122 18 80 85 105 106 115 128 132 146 132 Average Rating 68 | 5 9 11 21 22 24 25 29 31 44 49 44 41 63 95 87 105 96 4 60 76 93 100 111 119 128 139 57 On Entrance 58 | . 7 10 18 23 24 25 25 28 38 45 51 42 39 73 96 89 106 2 18 79 78 99 106 115 126 132 132 Naked Turns 176 | . . . . . . . . . . . . . . . . . 132 44 . . . . . . . . . Heaviest Build 135 | 15 56 57 59 61 56 56 61 61 67 70 71 78 94 94 98 96 106 . 59 64 103 85 100 100 124 135 109 Greatest Support 140 | 32 40 40 60 60 32 32 83 83 60 60 88 88 88 92 92 130 130 3 63 64 122 110 122 140 140 135 135 Greatest Overweight (x) 5 | . 1 1 5 4 1 1 2 1 1 1 1 1 4 1 1 2 5 . 2 1 1 . . . . 1 2 Average Overweight (x) . | . . 1 . . 1 1 . . 1 1 . . . . . . . . . . . . . . . . . Largest Inventory Capacity 20 | 8 20 20 20 20 20 20 20 20 20 20 20 20 20 20 20 20 20 5 15 15 15 15 15 15 20 20 20 Average Capacity 18 | 7 16 20 20 20 20 20 20 20 20 20 20 20 20 20 20 20 18 5 11 15 15 15 15 15 17 20 14 Most Carried 20 | 8 13 20 20 20 20 20 20 20 20 20 20 20 20 20 20 20 20 4 12 15 15 15 15 15 20 20 19 Average Carried 17 | 4 9 17 19 19 18 19 19 19 18 18 15 19 19 19 19 19 16 4 7 14 14 14 14 14 16 19 10 Final Capacity 20 | 8 20 20 20 20 20 20 20 20 20 20 20 20 20 20 20 20 5 5 15 15 15 15 15 15 20 20 5 Final Carried 20 | 8 13 20 20 18 18 20 20 20 20 20 17 20 18 20 20 20 4 4 12 15 15 15 15 15 20 19 4 Class Distribution -------------------- 23% | Mutant 14% | Scavenger-Skirmisher 11% | Commander-Tank 10% | Scavenger-Tank 7% | Commander-Skirmisher 7% | Bothacker-Tank 4% | Scavenger-Mutant 4% | Bothacker-Skirmisher 3% | Scavenger-Gunner 3% | Tank 3% | Bothacker-Mutant Dominant Class ---------------- Mutant | -10/Materials Mutant | -10/Mines Scavenger-Mutant | -9/Materials Mutant | -9/Mines Mutant | -9/Exiles Mutant | -8/Mines Mutant | -8/Materials Mutant | -8/Garrison Bothacker-Tank | -7/Factory Bothacker-Tank | -7/Waste Bothacker-Tank | -7/Factory Bothacker-Skirmisher | -7/Garrison Bothacker-Skirmisher | -6/Factory Commander-Tank | -6/Garrison Commander-Tank | -6/Factory Commander-Skirmisher | -6/Garrison Commander-Skirmisher | -5/Factory Mutant | -5/Waste Scavenger-Skirmisher | -5/Factory Scavenger-Skirmisher | -5/Garrison Scavenger-Skirmisher | -4/Factory Scavenger-Skirmisher | -4/Upper Caves Scavenger-Tank | -4/Upper Caves Scavenger-Tank | -4/Zhirov Scavenger-Tank | -3/Proximity Caves Scavenger-Gunner | -3/Research Mutant | -3/Quarantine Resources | -11 -10 -10 -9 -9 -9 -8 -8 -8 -7 -7 -7 -7 -6 -6 -6 -6 -5 -5 -5 -5 -4 -4 -4 -4 -3 -3 -3 ----------- Run | Yrd Mat Min Mat Min Exi Min Mat Gar Fac Was Fac Gar Fac Gar Fac Gar Fac Was Fac Gar Fac Upp Upp Zhi Pro Res Qua Matter Collected 12843 | 410 121 265 184 334 . 120 384 810 279 280 561 543 423 380 552 312 964 . 510 402 1341 576 319 402 800 1082 489 Remotely 942 | . . . . . . . . . . . . . . . . . . . 178 274 255 . . . 125 110 . Salvage Created 18113 | 136 258 247 776 84 . 137 1690 1043 . 318 680 551 799 1308 725 252 932 . 720 247 2370 515 575 250 1380 1958 162 Parts 795 | 10 16 15 57 3 . 16 73 55 . 2 36 27 50 54 32 15 41 . 29 7 78 25 30 3 28 89 4 Haulers Intercepted 7 | . . . 1 . . . 2 . . . . . . . 1 . . . . . 3 . . . . . . Recyclers Shooed 18 | . . . 2 . . . 1 . . . 3 . 2 . 1 . 1 . 1 . 1 . 1 . . 5 . Parts Field Recycled . | . . . . . . . . . . . . . . . . . . . . . . . . . . . . Retrieved Matter . | . . . . . . . . . . . . . . . . . . . . . . . . . . . . Parts Self-Destructed 87 | . . . . . . . . . . . . . . . . . . . . . . 21 37 2 27 . . Prevented 4 | . . . . . . . . . . . . . . . . . . . . . . . 1 . 3 . . Kills | -11 -10 -10 -9 -9 -9 -8 -8 -8 -7 -7 -7 -7 -6 -6 -6 -6 -5 -5 -5 -5 -4 -4 -4 -4 -3 -3 -3 ------- Run | Yrd Mat Min Mat Min Exi Min Mat Gar Fac Was Fac Gar Fac Gar Fac Gar Fac Was Fac Gar Fac Upp Upp Zhi Pro Res Qua Combat Hostiles Destroyed 291 | . 9 7 19 17 . 3 19 23 . 1 15 9 16 28 3 3 13 . 13 4 31 6 10 . 8 27 7 Melee 2 | . . . . . . . 1 . . . . . . . . . . . . . . . . . . . 1 Guns 219 | . 9 7 14 10 . 3 18 21 . 1 6 5 16 27 3 3 10 . 13 3 16 6 7 . 4 15 2 Cannons 29 | . . . 2 2 . . . . . . 6 1 . . . . . . . . 12 . 3 . 3 . . AOE 31 | . . . 1 5 . . . 1 . . 3 1 . . . . 3 . . . . . . . 1 12 4 Classes Destroyed 24 | 3 3 1 2 2 . . 3 1 . 2 . 1 1 1 . . . . . . 1 1 . . 1 . 1 Worker 21 | 2 . . 1 . . 3 3 . . . 2 . 1 . 1 . 2 . 1 . 1 . . . . 4 . Builder 15 | . . 1 . 1 . 1 1 . . . 1 . . . . . 1 . . . 2 . . . . 7 . Tunneler 6 | 1 . 1 1 . . . 1 . . . 1 . . . . . 1 . . . . . . . . . . Hauler 7 | . . . 1 . . . 2 . . . . . . . 1 . . . . . 3 . . . . . . Recycler 17 | 1 . . 1 . . 1 4 . . . . . . . 3 . 1 . 1 . 1 . . . . 4 . Minesweeper 1 | . . . . . . . . . . . . . . . . . . . . . . 1 . . . . . Operator 2 | . . . . . . . 1 . . . . . . . . . . . . . . . . . . . 1 Drone 2 | . . . . . . . . . . . . . . . . . . . . . . . . . 2 . . Watcher 13 | . 1 . 3 . . . 4 . . . . . 2 . . . 1 . 1 . . . . . . 1 . Swarmer 50 | . 6 3 11 . . 3 . 2 . . . . 4 12 . . . . 4 . 1 . 4 . . . . Grunt 108 | . 3 4 4 . . . 9 12 . . 6 7 3 2 1 1 10 . 8 2 15 3 4 . . 14 . Brawler 8 | . . . . . . . 1 . . . 1 1 . 2 . . 1 . . . 1 . . . . 1 . Duelist 5 | . . . . . . . . . . 1 . . . 2 . . 1 . . . . 1 . . . . . Protector 6 | . . . . . . . . . . . . . 1 . . . . . . . . . . . 4 1 . Sentry 42 | . . . 4 . . . 7 5 . . 3 . . . 1 2 . . 1 1 4 . 1 . 1 6 6 Demolisher 5 | . . . . 1 . . . . . . . . . . 1 . . . . . . . . . 3 . . Specialist 1 | . . . . . . . . . . . . 1 . . . . . . . . . . . . . . . Hunter 29 | . . . . . . . 2 1 . . 3 . 4 9 1 1 1 . . . 3 2 . . . 2 . Programmer 21 | . . . . . . . . 3 . . 3 . 4 . . . . . . 1 6 . 1 . . 3 . Heavy 1 | . . . . . . . . . . . . . . . . . . . . . 1 . . . . . . Behemoth 2 | . . . . . . . . . . . . . . 1 . . . . . . 1 . . . . . . Compactor 1 | . . . . . . . . . . 1 . . . . . . . . . . . . . . . . . Striker 1 | . . . . . . . . . . . . . . . . . . . . . . . . . . . 1 Packrat 1 | . . . . . . . . . . . . . . . . . . . . . . . 1 . . . . Assembled 16 | . . . . 16 . . . . . . . . . . . . . . . . . . . . . . . Best Kill Streak 16 | 2 4 4 6 16 . 3 12 4 . 1 5 4 4 13 2 1 5 . 7 1 5 3 5 . 2 14 6 Combat Bots Only 16 | . 3 4 4 16 . 3 3 4 . 1 4 4 4 13 1 1 4 . 6 1 3 3 5 . 2 9 5 Max Kills in Single Turn 5 | 1 2 2 2 3 . 2 2 1 . 1 2 1 2 2 1 1 2 . 2 1 2 1 1 . 1 5 1 Gunslinging 1 | . 1 1 1 1 . . . . . . . . . 1 . . . . 1 . . . . . . 1 . Exploded 3 | . . . 1 3 . . . 1 . . 1 1 . . . . 2 . . . . . . . 1 3 1 Melee 1 | . . . . . . . 1 . . . . . . . . . . . . . . . . . . . 1 Uniques/NPCs Destroyed . | . . . . . . . . . . . . . . . . . . . . . . . . . . . . Combat | -11 -10 -10 -9 -9 -9 -8 -8 -8 -7 -7 -7 -7 -6 -6 -6 -6 -5 -5 -5 -5 -4 -4 -4 -4 -3 -3 -3 -------- Run | Yrd Mat Min Mat Min Exi Min Mat Gar Fac Was Fac Gar Fac Gar Fac Gar Fac Was Fac Gar Fac Upp Upp Zhi Pro Res Qua Hostile Shots Fired 2546 | . 34 34 120 140 . 2 137 121 . . 249 74 54 175 55 64 253 1 91 44 265 44 39 . 24 236 290 Missed 801 | . 7 10 28 32 . . 46 29 . . 99 26 17 35 19 16 75 . 28 19 94 15 19 . 1 86 100 Damage Taken 23656 | . 204 211 758 1460 . 15 1116 1099 8 9 940 594 589 1666 466 543 2399 38 1266 420 3066 368 221 . 901 1523 3776 Core 3756 | . 16 35 93 276 . . 208 259 . . 92 58 76 125 60 53 637 38 94 34 242 17 14 . 56 114 1159 Absorbed by Shields 2209 | . . . . . . . . . . 8 365 57 . 191 169 207 501 . . . . . . . 77 634 . Redirected to Shielding 614 | . . 22 47 23 . 2 . 148 2 . 125 44 . . . . . . . . 136 . . . 19 46 . Ignored by Resistances 9013 | . 67 65 230 411 . 4 314 317 2 5 411 181 184 628 230 221 1011 10 362 175 914 138 129 . 285 1494 1225 Regen/Repaired (Parts) 1744 | . . . 133 . . . 180 . . . 145 . 79 398 222 287 22 . . . 210 . . . . 68 . Core Remaining (%) 54 | 100 . 79 . . . 7 . 15 . . . 78 . . . 63 . . . 19 . . . . 71 . . Volleys Fired 1037 | 8 22 26 57 23 . 9 70 98 12 16 63 59 31 49 48 31 88 . 22 32 76 19 13 2 35 97 31 Largest 4 | 2 2 2 2 2 . 2 2 2 1 2 2 2 1 3 2 3 3 . 3 3 4 4 4 4 4 4 4 Hottest 357 | 40 40 40 131 101 . 50 138 75 5 96 96 110 55 262 162 288 132 . 300 234 357 173 201 214 214 205 207 Shots Fired 2176 | 16 44 52 107 46 . 18 131 165 12 54 128 105 88 108 77 48 143 . 61 58 264 68 52 8 92 180 51 Gun 1647 | 16 44 52 94 35 . 18 131 140 . 30 44 87 63 102 48 32 103 . 59 44 175 68 42 6 39 145 30 Cannon 235 | . . . 12 6 . . . 13 . 16 42 7 . . . 3 . . . . 85 . 10 2 39 . . Launcher 86 | . . . 1 5 . . . 3 . . 14 . . . 1 . 3 . . . . . . . 14 34 11 Special 208 | . . . . . . . . 9 12 8 28 11 25 6 28 13 37 . 2 14 4 . . . . 1 10 Kinetic 1055 | 16 44 52 11 35 . 18 23 123 . 46 86 7 57 22 13 6 94 . . . 83 53 39 6 71 134 16 Thermal 641 | . . . 95 6 . . 72 . . . . . . 80 35 29 9 . 50 26 177 15 13 2 7 11 14 Explosive 75 | . . . 1 5 . . . 3 . . 14 . . . 1 . 3 . . . . . . . 8 29 11 Electromagnetic 197 | . . . . . . . 36 30 . . . 87 6 . . . . . 9 18 . . . . 6 5 . Robot Hit Streak 59 | 9 10 30 47 16 . 10 23 47 9 19 20 14 22 59 23 9 27 . 31 17 52 17 14 12 14 34 12 Robot Miss Streak 6 | 2 6 1 3 6 . 2 2 2 1 1 2 1 2 2 2 3 2 . 2 1 3 1 1 . 1 2 1 Penetration Max 2 | . . . . . . . . . . 1 . . . . . 1 2 . . . 1 1 . . . 2 2 Secondary Targets 35 | . 2 1 4 3 . . 3 2 . . . . . 7 . 1 2 . 5 . . 3 . . . 2 . Max Gunslinging Chain 2 | . 1 1 1 1 . . 1 1 . . . . . 1 . 1 1 . 2 . . 1 . . . 1 . Autonomous 182 | . . . . . . . . . . 30 46 . 60 25 21 . . . . . . . . . . . . Shots Hit Robots 1697 | 12 25 45 83 30 . 14 109 92 11 49 99 82 80 90 64 33 118 . 48 41 193 53 33 2 90 150 51 Core Hits 835 | 5 13 14 31 36 . 10 62 58 . 5 31 25 29 58 19 7 55 . 40 12 83 25 19 5 39 117 37 Critical Kills 25 | . . . . . . . . 2 . . . . 1 5 1 . 3 . 1 . 2 2 2 . 4 2 . Critical Parts Destroyed 31 | . . . . . . 1 . 2 . 1 1 . 1 7 2 2 1 . 1 . . . . . 4 8 . Critical Strikes 107 | . . . 7 . . 1 2 4 . 3 7 1 2 12 3 3 4 . 3 1 12 3 2 . 19 12 6 Burn 16 | . . . 7 . . . 2 . . . . . . . . . . . 1 . 4 1 . . 1 . . Meltdown 2 | . . . . . . . . . . . . . . . . . . . . . 2 . . . . . . Destroy 62 | . . . . . . 1 . 4 . 2 1 . 2 12 3 3 4 . 2 . . 2 2 . 10 12 2 Blast 18 | . . . . . . . . . . 1 6 1 . . . . . . . . 6 . . . 4 . . Corrupt 1 | . . . . . . . . . . . . . . . . . . . . 1 . . . . . . . Sever 8 | . . . . . . . . . . . . . . . . . . . . . . . . . 4 . 4 Melee Attacks 39 | . . . . . . . . . . . . . . . . . . . . . 3 . . . 27 . 9 Impact . | . . . . . . . . . . . . . . . . . . . . . . . . . . . . Slashing 39 | . . . . . . . . . . . . . . . . . . . . . 3 . . . 27 . 9 Piercing . | . . . . . . . . . . . . . . . . . . . . . . . . . . . . Sneak Attacks 3 | . . . . . . . . . . . . . . . . . . . . . 3 . . . . . . Combat Hostiles . | . . . . . . . . . . . . . . . . . . . . . . . . . . . . Follow-up Attacks . | . . . . . . . . . . . . . . . . . . . . . . . . . . . . Damage Inflicted 49343 | 142 325 584 1621 1170 . 284 2514 2043 . 1323 2343 979 1620 2551 1189 651 4389 . 1571 916 5977 1129 712 149 4640 7752 2769 Guns 31466 | 142 325 584 1306 511 . 284 2348 1796 . 849 1325 859 1613 2551 1038 651 2769 . 1526 684 3494 1129 572 119 579 3624 788 Cannons 4595 | . . . 204 81 . . . . . 474 545 56 . . . . . . . . 2181 . 140 30 884 . . Explosions 10095 | . . . 82 578 . . 109 247 . . 465 64 . . 142 . 1516 . 45 232 . . . . 790 4128 1697 Melee 2947 | . . . . . . . . . . . . . . . . . . . . . 297 . . . 2387 . 263 Ramming 240 | . . . 29 . . . 57 . . . 8 . 7 . 9 . 104 . . . 5 . . . . . 21 Kinetic 20859 | 142 325 584 116 511 . 284 504 1130 . 1323 1870 56 1538 595 378 165 2712 . . . 2010 840 493 103 1285 3431 464 Thermal 13300 | . . . 1394 81 . . 1202 . . . . 64 . 1956 660 486 249 . 1433 698 3665 289 219 46 178 356 324 Explosive 8787 | . . . 82 578 . . . 247 . . 465 . . . 142 . 1324 . . . . . . . 618 3634 1697 Electromagnetic 3210 | . . . . . . . 751 666 . . . 859 75 . . . . . 138 218 . . . . 172 331 . Impact . | . . . . . . . . . . . . . . . . . . . . . . . . . . . . Slashing 2947 | . . . . . . . . . . . . . . . . . . . . . 297 . . . 2387 . 263 Piercing . | . . . . . . . . . . . . . . . . . . . . . . . . . . . . Highest Corruption 14 | . . . . . . . . 11 . 14 14 9 . . 1 1 6 6 6 6 2 2 . . . 1 14 Average Corruption 5 | . . . . . . . . 6 . 10 11 9 . . 1 1 3 6 6 6 1 1 . . . 1 4 Corruption Purged 7 | . . . . . . . . . . . 5 . . . . . . . . . . 2 . . . . . Corruption Blocked . | . . . . . . . . . . . . . . . . . . . . . . . . . . . . Effects 268 | . . . . . . . . 38 . 12 68 58 . . 7 8 10 2 19 16 18 3 . . . 2 7 Message Errors 79 | . . . . . . . . 13 . 5 23 15 . . 3 4 . 1 8 1 3 . . . . 1 2 Matter Fused 43 | . . . . . . . . 5 . 1 6 11 . . 2 1 1 . 3 5 5 1 . . . . 2 Heat Flow Errors 30 | . . . . . . . . 3 . 1 9 10 . . 1 2 1 . 1 . 2 . . . . . . Energy Discharges 40 | . . . . . . . . 8 . . 14 5 . . . . 3 . 2 2 3 1 . . . . 2 Parts Rejected 1 | . . . . . . . . . . . 1 . . . . . . . . . . . . . . . . Parts Fused 5 | . . . . . . . . 1 . . 1 2 . . . . . . . . 1 . . . . . . Data Loss (minor) 30 | . . . . . . . . 4 . 4 6 7 . . . . 1 1 3 2 1 . . . . 1 . Data Loss (major) 15 | . . . . . . . . . . 1 5 1 . . . 1 3 . . 2 1 . . . . . 1 Misfires 12 | . . . . . . . . 2 . . 2 3 . . 1 . . . 1 3 . . . . . . . Alerts 7 | . . . . . . . . 2 . . . 2 . . . . . . . 1 1 1 . . . . . Weapon Failures 6 | . . . . . . . . . . . 1 2 . . . . 1 . 1 . 1 . . . . . . Overload Shots . | . . . . . . . . . . . . . . . . . . . . . . . . . . . . Overflow Damage 1096 | . . . 5 17 . . 21 . . . 12 . . . . . 20 . . 19 231 . . 5 657 88 21 Projectiles 223 | . . . 5 . . . . . . . 12 . . . . . . . . . 151 . . 5 50 . . Explosions 185 | . . . . 17 . . 21 . . . . . . . . . 19 . . 19 . . . . . 88 21 Melee 688 | . . . . . . . . . . . . . . . . . 1 . . . 80 . . . 607 . . Knockbacks 19 | . . . 1 . . . 1 . . . 7 1 . . . . 1 . . . 7 . . . 1 . . Impact 4 | . . . 1 . . . 1 . . . . . . . . . 1 . . . 1 . . . . . . Kinetic 15 | . . . . . . . . . . . 7 1 . . . . . . . . 6 . . . 1 . . Secondary . | . . . . . . . . . . . . . . . . . . . . . . . . . . . . Self-Inflicted Damage 805 | . . . . . . . 47 . . . . . . . 68 . 86 . 36 56 . . . . . 155 357 Shots 17 | . . . . . . . 1 . . . . . . . 1 . 2 . 1 1 . . . . . 3 8 Rammed 22 | . . . 2 . . . 2 . . . 1 . . . . . 11 . . . . . . . . . 6 Targets Rammed 28 | . . . 2 . . . 3 . . . 2 . 1 . 1 . 11 . . . 1 . . . . . 7 Kicked 4 | . . . . . . . . . . . . . 1 . 1 . . . . . 1 . . . . . 1 Crushed 2 | . . . . . . . 1 . . . 1 . . . . . . . . . . . . . . . . Highest Temperature 570 | . 27 20 306 294 . . 201 252 . 271 242 255 66 185 88 55 189 . 570 165 424 22 77 39 98 135 . Average Temperature 78 | . 11 6 72 156 . . 48 85 . 61 47 79 27 106 33 38 93 . 145 63 98 10 32 26 41 46 . Received Heat Transfer 6088 | . 93 117 234 120 . . 684 531 . 6 394 361 81 390 79 74 669 . 462 147 557 46 27 . 4 481 531 Effects 11 | . . . 2 1 . . . . . . . . . . . . . . 8 . . . . . . . . Shutdowns 1 | . . . . . . . . . . . . . . . . . . . 1 . . . . . . . . Energy Bleed 7 | . . . 2 1 . . . . . . . . . . . . . . 4 . . . . . . . . Damage (major) 3 | . . . . . . . . . . . . . . . . . . . 3 . . . . . . . . Siege Activations . | . . . . . . . . . . . . . . . . . . . . . . . . . . . . Robots Corrupted 4 | . . . . . . . . 1 . . . 2 . . . . . . . 1 . . . . . . . Combat Hostiles 4 | . . . . . . . . 1 . . . 2 . . . . . . . 1 . . . . . . . Parts Fried 11 | . . . . . . . 2 4 . . 2 1 . . . . . . . 1 1 . . . . . . Impact Corruptions 1 | . . . . . . . . . . . . . . . . . 1 . . . . . . . . . . Robots Melted 7 | . . . 2 . . . . . . . . . . 1 . . . . . . 4 . . . . . . Combat Hostiles 6 | . . . 2 . . . . . . . . . . 1 . . . . . . 3 . . . . . . Parts Melted 48 | . . . 2 . . . 7 . . . . . . 10 2 . . . 4 1 17 4 1 . . . . Heat Transferred 23531 | . . . 3330 148 . . 2444 . . . . 100 . 3136 962 703 224 . 2405 914 6695 750 500 74 243 459 444 Parts Sabotaged 5 | . . . . . . . . . . . . . . . . . . . . . . . . . . . 5 Parts Stolen . | . . . . . . . . . . . . . . . . . . . . . . . . . . . . Parts Stripped . | . . . . . . . . . . . . . . . . . . . . . . . . . . . . Power Chain Reactions 10 | . . . . . . . 2 1 . . . 1 . . . . 1 . 1 1 . . . . . 2 1 Alert | -11 -10 -10 -9 -9 -9 -8 -8 -8 -7 -7 -7 -7 -6 -6 -6 -6 -5 -5 -5 -5 -4 -4 -4 -4 -3 -3 -3 ------- Run | Yrd Mat Min Mat Min Exi Min Mat Gar Fac Was Fac Gar Fac Gar Fac Gar Fac Was Fac Gar Fac Upp Upp Zhi Pro Res Qua Peak Influence 2153 | 20 280 155 494 66 . 95 391 1626 739 218 246 550 425 1252 952 1015 1788 557 512 923 654 . . . . 1064 2153 Initial 739 | . 11 26 16 55 . . 31 11 739 211 134 50 250 98 569 492 461 522 343 315 419 . . . . 2 520 Average 456 | 6 154 58 246 38 . 78 149 674 727 213 89 271 301 744 722 744 857 550 357 700 318 . . . . 646 1900 Maximum Alert Level 5 | . 1 . 2 . . . 1 5 3 1 1 2 2 4 3 3 5 2 2 3 2 . . . . 3 5 Low Security (%) 33 | 100 64 100 41 100 . 100 62 27 . . 93 54 10 12 . . . . 1 . 15 . . . . 20 . Level 1 23 | . 35 . 35 . . . 37 10 . 100 6 23 85 15 . . . . 88 13 54 . . . . 3 . Level 2 18 | . . . 22 . . . . 10 11 . . 21 4 18 46 56 37 100 9 30 29 . . . . 14 . Level 3 19 | . . . . . . . . 31 88 . . . . 27 53 43 45 . . 56 . . . . . 61 . Level 4 3 | . . . . . . . . 17 . . . . . 26 . . 8 . . . . . . . . . . Level 5 . | . . . . . . . . 3 . . . . . . . . 8 . . . . . . . . . . High Security . | . . . . . . . . . . . . . . . . . . . . . . . . . . . . Max Security 1 | . . . . . . . . . . . . . . . . . . . . . . . . . . . 99 Squads Dispatched 97 | . 1 . 1 . . . 3 . . . 10 . 5 . 12 . 18 . 3 . 13 . . . . 8 23 Investigation 20 | . 1 . . . . . 2 . . . 5 . 1 . 3 . 3 . 1 . 4 . . . . . . Extermination 16 | . . . . . . . . . . . 3 . 2 . 2 . 3 . 1 . 4 . . . . 1 . Reinforcement 23 | . . . 1 . . . 1 . . . 2 . 1 . 3 . 4 . 1 . 4 . . . . 6 . Assault 32 | . . . . . . . . . . . . . . . 4 . 6 . . . . . . . . 1 21 Garrison 6 | . . . . . . . . . . . . . 1 . . . 2 . . . 1 . . . . . 2 Intercept . | . . . . . . . . . . . . . . . . . . . . . . . . . . . . Searches Triggered . | . . . . . . . . . . . . . . . . . . . . . . . . . . . . Construction Impeded 5 | . . . . . . . . . . . . . . . . . 2 . . . . . . . . 3 . Haulers Reinforced 7 | . . . . . . . . . . . 1 . . . 2 . . . 1 . 2 . . . . 1 . Active Scanning Responses . | . . . . . . . . . . . . . . . . . . . . . . . . . . . . Cargo Convoy Interrupts 1 | . . . . . . . . . . . . . 1 . . . . . . . . . . . . . . Stealth | -11 -10 -10 -9 -9 -9 -8 -8 -8 -7 -7 -7 -7 -6 -6 -6 -6 -5 -5 -5 -5 -4 -4 -4 -4 -3 -3 -3 --------- Run | Yrd Mat Min Mat Min Exi Min Mat Gar Fac Was Fac Gar Fac Gar Fac Gar Fac Was Fac Gar Fac Upp Upp Zhi Pro Res Qua Distress Signals 27 | . 2 . 1 . . . 1 . . . 2 . . . 2 . 6 . 3 . 4 . . . 4 2 . Communications Jammed 16 | . . . . . . . . . . . . . . . . . . . . . . . . . . 14 2 Distress Signals 15 | . . . . . . . . . . . . . . . . . . . . . . . . . . 13 2 Times Spotted 658 | . 13 10 34 20 . 1 36 34 3 6 28 15 29 43 40 20 89 6 23 21 53 6 10 . 14 42 62 Peak Tracking Total 32 | . 4 5 8 17 . 1 10 5 2 3 5 4 6 15 6 4 24 6 9 5 9 3 4 . 3 5 32 Tactical Retreats 42 | . 1 . 3 1 . . 2 1 . . . 2 . 2 1 . 10 . 2 4 3 . . . 1 2 7 Traps | -11 -10 -10 -9 -9 -9 -8 -8 -8 -7 -7 -7 -7 -6 -6 -6 -6 -5 -5 -5 -5 -4 -4 -4 -4 -3 -3 -3 ------- Run | Yrd Mat Min Mat Min Exi Min Mat Gar Fac Was Fac Gar Fac Gar Fac Gar Fac Was Fac Gar Fac Upp Upp Zhi Pro Res Qua Traps Triggered 17 | . 1 . . . . . 1 1 1 . 1 . . 1 1 . 3 . 4 . 1 . . . . . 2 Indirectly 1 | . . . . . . . . . . . 1 . . . . . . . . . . . . . . . . Trap Hack Attempts . | . . . . . . . . . . . . . . . . . . . . . . . . . . . . Triggered . | . . . . . . . . . . . . . . . . . . . . . . . . . . . . Disarmed 6 | . 6 . . . . . . . . . . . . . . . . . . . . . . . . . . Reprogrammed . | . . . . . . . . . . . . . . . . . . . . . . . . . . . . Reused . | . . . . . . . . . . . . . . . . . . . . . . . . . . . . Traps Extracted . | . . . . . . . . . . . . . . . . . . . . . . . . . . . . Installed . | . . . . . . . . . . . . . . . . . . . . . . . . . . . . Triggered . | . . . . . . . . . . . . . . . . . . . . . . . . . . . . Machines | -11 -10 -10 -9 -9 -9 -8 -8 -8 -7 -7 -7 -7 -6 -6 -6 -6 -5 -5 -5 -5 -4 -4 -4 -4 -3 -3 -3 ---------- Run | Yrd Mat Min Mat Min Exi Min Mat Gar Fac Was Fac Gar Fac Gar Fac Gar Fac Was Fac Gar Fac Upp Upp Zhi Pro Res Qua Machines Disabled 67 | . . . 2 . . . . 4 . . 2 3 3 5 13 4 9 . . 2 4 . . 4 3 4 5 Max in Single Turn 4 | . . . 1 . . . . 1 . . 1 1 1 1 1 1 4 . . 1 1 . . 3 1 1 3 Garrison Access 3 | . . . . . . . . . . . . . . . 1 . 1 . . . . . . . . . 1 Garrison Relay 13 | . . . . . . . . 3 . . . 3 . 3 . 2 . . . 2 . . . . . . . Machines Repaired . | . . . . . . . . . . . . . . . . . . . . . . . . . . . . Machines Dismantled . | . . . . . . . . . . . . . . . . . . . . . . . . . . . . Machines Sabotaged . | . . . . . . . . . . . . . . . . . . . . . . . . . . . . Overloaded Fab Kills 4 | . . . . . . . . . . . . . . . . . 4 . . . . . . . . . . Hacking | -11 -10 -10 -9 -9 -9 -8 -8 -8 -7 -7 -7 -7 -6 -6 -6 -6 -5 -5 -5 -5 -4 -4 -4 -4 -3 -3 -3 --------- Run | Yrd Mat Min Mat Min Exi Min Mat Gar Fac Was Fac Gar Fac Gar Fac Gar Fac Was Fac Gar Fac Upp Upp Zhi Pro Res Qua Machines Accessed 75 | . 4 . 4 1 1 . 8 3 . . 8 . 8 3 7 . 9 . 4 . 6 . 1 6 . 2 . Terminals 35 | . 4 . 3 1 . . 5 3 . . 3 . 3 3 1 . 4 . 3 . 2 . . . . . . Fabricators 12 | . . . . . . . . . . . 2 . 1 . 2 . 4 . . . 2 . . . . 1 . Repair Stations 6 | . . . 1 . . . 1 . . . 1 . 1 . 1 . . . . . 1 . . . . . . Recycling Units 4 | . . . . . . . . . . . . . 2 . 1 . . . . . . . . . . 1 . Scanalyzers 3 | . . . . . . . 1 . . . 1 . . . . . . . . . 1 . . . . . . Garrison Access 7 | . . . . . . . 1 . . . 1 . 1 . 2 . 1 . 1 . . . . . . . . Total Hacks 284 | . 12 . 14 1 1 . 32 6 . . 39 . 32 4 44 . 34 . 8 . 30 . 1 19 . 7 . Successful 210 | . 8 . 11 . 1 . 24 1 . . 29 . 22 3 35 . 25 . 2 . 23 . 1 19 . 6 . Failed 74 | . 4 . 3 1 . . 8 5 . . 10 . 10 1 9 . 9 . 6 . 7 . . . . 1 . Catastrophic 8 | . . . . . . . . . . . 1 . 2 . 2 . 1 . 2 . . . . . . . . Database Lockouts . | . . . . . . . . . . . . . . . . . . . . . . . . . . . . Manual 115 | . 10 . 4 2 1 . 20 2 . . 13 . 22 1 9 . 13 . 6 . 11 . . . . 1 . Terminals 94 | . 12 . 7 1 . . 21 6 . . 7 . 11 4 2 . 12 . 5 . 6 . . . . . . Fabricators 86 | . . . . . . . . . . . 7 . 9 . 30 . 19 . . . 16 . . . . 5 . Repair Stations 25 | . . . 7 . . . 6 . . . 3 . 2 . 3 . . . . . 4 . . . . . . Recycling Units 9 | . . . . . . . . . . . . . 5 . 2 . . . . . . . . . . 2 . Scanalyzers 25 | . . . . . . . 3 . . . 18 . . . . . . . . . 4 . . . . . . Garrison Access 24 | . . . . . . . 2 . . . 4 . 5 . 7 . 3 . 3 . . . . . . . . Terminal Hacks 47 | . 4 . 2 . 1 . 5 1 . . 1 . 3 3 1 . 3 . 1 . 2 . 1 19 . . . Record 7 | . . . . . . . . . . . . . . . . . . . . . . . . 7 . . . Part Schematic 4 | . . . . . . . . . . . . . . . . . . . . . . . . 4 . . . Robot Schematic 6 | . 2 . . . . . 1 . . . . . 2 . . . 1 . . . . . . . . . . Robot Analysis 4 | . . . . . . . . . . . . . . . . . . . . . . . . 4 . . . Prototype ID Bank 4 | . . . . . . . . . . . . . . . . . . . . . . . . 4 . . . Open Door 2 | . . . . . . . . . . . . . . 1 . . . . . . . . 1 . . . . Open DSF 1 | . . . . . . . . . . . . . . . . . . . 1 . . . . . . . . Branch Access Points 3 | . . . . . . . 1 . . . . . . . . . 1 . . . 1 . . . . . . Emergency Access Points 1 | . . . . . . . . 1 . . . . . . . . . . . . . . . . . . . Terminal Index 1 | . . . . . . . 1 . . . . . . . . . . . . . . . . . . . . Fabricator Index 1 | . . . . . . . . . . . . . . . . . 1 . . . . . . . . . . Garrison Index 2 | . . . . . . . 1 . . . . . . . 1 . . . . . . . . . . . . Unreport Threat 2 | . . . 1 . . . . . . . . . . . . . . . . . 1 . . . . . . Locate Traps 2 | . . . 1 . . . . . . . . . 1 . . . . . . . . . . . . . . Disarm Traps 1 | . 1 . . . . . . . . . . . . . . . . . . . . . . . . . . Hauler Manifests 1 | . 1 . . . . . . . . . . . . . . . . . . . . . . . . . . Zone Layout 2 | . . . . . . . 1 . . . 1 . . . . . . . . . . . . . . . . Garrison Registry 1 | . . . . . . . . . . . . . . 1 . . . . . . . . . . . . . Patrol Navigation 1 | . . . . . . . . . . . . . . 1 . . . . . . . . . . . . . Derelict Proto ID Bank 1 | . . . . . 1 . . . . . . . . . . . . . . . . . . . . . . Fabricator Hacks 66 | . . . . . . . . . . . 2 . 8 . 26 . 14 . . . 12 . . . . 4 . Network Status 1 | . . . . . . . . . . . . . . . . . . . . . 1 . . . . . . Load Schematic 33 | . . . . . . . . . . . 1 . 4 . 13 . 7 . . . 6 . . . . 2 . Build 32 | . . . . . . . . . . . 1 . 4 . 13 . 7 . . . 5 . . . . 2 . Repair Station Hacks 17 | . . . 6 . . . 6 . . . 2 . . . 2 . . . . . 1 . . . . . . Scan Component 9 | . . . 3 . . . 3 . . . 1 . . . 1 . . . . . 1 . . . . . . Repair 8 | . . . 3 . . . 3 . . . 1 . . . 1 . . . . . . . . . . . . Recycling Unit Hacks 1 | . . . . . . . . . . . . . . . . . . . . . . . . . . 1 . Retrieve Matter 1 | . . . . . . . . . . . . . . . . . . . . . . . . . . 1 . Scanalyzer 22 | . . . . . . . 2 . . . 18 . . . . . . . . . 2 . . . . . . Insert Component 10 | . . . . . . . 1 . . . 8 . . . . . . . . . 1 . . . . . . Analyze 12 | . . . . . . . 1 . . . 10 . . . . . . . . . 1 . . . . . . Garrison Access Hacks 9 | . . . . . . . 1 . . . 1 . 1 . 2 . 3 . 1 . . . . . . . . Unlock Access 7 | . . . . . . . 1 . . . 1 . 1 . 2 . 1 . 1 . . . . . . . . Seal Access 1 | . . . . . . . . . . . . . . . . . 1 . . . . . . . . . . Coupler Status 1 | . . . . . . . . . . . . . . . . . 1 . . . . . . . . . . Unauthorized Hacks 48 | . 4 . 3 . . . 10 . . . 5 . 10 . 4 . 5 . . . 6 . . . . 1 . Terminals 23 | . 4 . 3 . . . 9 . . . 2 . 4 . . . . . . . 1 . . . . . . Track 7 | . 2 . . . . . 3 . . . . . 2 . . . . . . . . . . . . . . Botnet 12 | . 2 . 2 . . . 4 . . . 2 . 1 . . . . . . . 1 . . . . . . Operators 3 | . . . 1 . . . 1 . . . . . 1 . . . . . . . . . . . . . . Skim 1 | . . . . . . . 1 . . . . . . . . . . . . . . . . . . . . Fabricators 12 | . . . . . . . . . . . 1 . . . 2 . 5 . . . 3 . . . . 1 . Prioritize 7 | . . . . . . . . . . . 1 . . . 2 . 2 . . . 1 . . . . 1 . Liberate 3 | . . . . . . . . . . . . . . . . . 2 . . . 1 . . . . . . Overload 1 | . . . . . . . . . . . . . . . . . 1 . . . . . . . . . . Recompile 1 | . . . . . . . . . . . . . . . . . . . . . 1 . . . . . . Repair Stations 3 | . . . . . . . . . . . 1 . . . . . . . . . 2 . . . . . . Mechanics 1 | . . . . . . . . . . . . . . . . . . . . . 1 . . . . . . Patch 2 | . . . . . . . . . . . 1 . . . . . . . . . 1 . . . . . . Recycling Units 3 | . . . . . . . . . . . . . 3 . . . . . . . . . . . . . . Reject 2 | . . . . . . . . . . . . . 2 . . . . . . . . . . . . . . Recyclers 1 | . . . . . . . . . . . . . 1 . . . . . . . . . . . . . . Scanalyzers 1 | . . . . . . . 1 . . . . . . . . . . . . . . . . . . . . Extract 1 | . . . . . . . 1 . . . . . . . . . . . . . . . . . . . . Garrison Access 6 | . . . . . . . . . . . 1 . 3 . 2 . . . . . . . . . . . . Decoy 1 | . . . . . . . . . . . . . 1 . . . . . . . . . . . . . . Reprogram 4 | . . . . . . . . . . . 1 . 1 . 2 . . . . . . . . . . . . Intercept 1 | . . . . . . . . . . . . . 1 . . . . . . . . . . . . . . Data Cores Recovered . | . . . . . . . . . . . . . . . . . . . . . . . . . . . . Used . | . . . . . . . . . . . . . . . . . . . . . . . . . . . . Hacking Detections 57 | . 4 . 3 1 . . 8 3 . . 7 . 8 1 7 . 5 . 3 . 5 . . . . 2 . Full Trace Events 10 | . . . . . . . . 2 . . 3 . . . 1 . 1 . 1 . 2 . . . . . . Feedback Events . | . . . . . . . . . . . . . . . . . . . . . . . . . . . . Feedback Blocked . | . . . . . . . . . . . . . . . . . . . . . . . . . . . . Robot Schematics Acquired 6 | . 2 . . . . . 1 . . . . . 2 . . . 1 . . . . . . . . . . Robots Built 51 | . . . . . . . . . . . 1 . 6 . 23 . 10 . . . 8 . . . . 3 . Authchips 30 | . . . . . . . . . . . . . 4 . 13 . 7 . . . 4 . . . . 2 . Time 1565 | . . . . . . . . . . . 20 . 241 . 417 . 357 . . . 463 . . . . 67 . Total Robot Build Rating 229 | . . . . . . . . . . . 1 . 22 . 101 . 48 . . . 44 . . . . 13 . Part Schematics Acquired 15 | . . . . . . . 2 . . . 8 . . . . . . . . . 1 . . 4 . . . Parts Built . | . . . . . . . . . . . . . . . . . . . . . . . . . . . . Authchips . | . . . . . . . . . . . . . . . . . . . . . . . . . . . . Time . | . . . . . . . . . . . . . . . . . . . . . . . . . . . . Total Part Build Rating . | . . . . . . . . . . . . . . . . . . . . . . . . . . . . Parts Repaired 8 | . . . 3 . . . 3 . . . 1 . . . 1 . . . . . . . . . . . . Time 266 | . . . 78 . . . 118 . . . 26 . . . 44 . . . . . . . . . . . . Parts Recycled . | . . . . . . . . . . . . . . . . . . . . . . . . . . . . Recycled Matter . | . . . . . . . . . . . . . . . . . . . . . . . . . . . . Retrieved Matter 169 | . . . . . . . . . . . . . . . . . . . . . . . . . . 169 . Retrieved Components . | . . . . . . . . . . . . . . . . . . . . . . . . . . . . Parts Scanalyzed 10 | . . . . . . . 1 . . . 8 . . . . . . . . . 1 . . . . . . Part Schematics Acquired 10 | . . . . . . . 1 . . . 8 . . . . . . . . . 1 . . . . . . Parts Damaged 1 | . . . . . . . . . . . 1 . . . . . . . . . . . . . . . . Bothacking | -11 -10 -10 -9 -9 -9 -8 -8 -8 -7 -7 -7 -7 -6 -6 -6 -6 -5 -5 -5 -5 -4 -4 -4 -4 -3 -3 -3 ------------ Run | Yrd Mat Min Mat Min Exi Min Mat Gar Fac Was Fac Gar Fac Gar Fac Gar Fac Was Fac Gar Fac Upp Upp Zhi Pro Res Qua Used RIF Installer 5 | . . . . . . . . 1 . . . 1 . 1 . 1 . . . 1 . . . . . . . Code Merge 1 | . . . . . . . . . . . . . . . . . . . . 1 . . . . . . . Patrol Navigation 1 | . . . . . . . . . . . . . . 1 . . . . . . . . . . . . . Structural Interface 1 | . . . . . . . . . . . . 1 . . . . . . . . . . . . . . . Program Shield 1 | . . . . . . . . . . . . . . . . 1 . . . . . . . . . . . Robots Hacked 105 | . . . . . . . . 5 4 6 15 2 13 4 14 5 24 . 1 6 4 . . . . 1 1 Non-combat 61 | . . . . . . . . . 2 . 11 . 11 . 12 . 18 . 1 . 4 . . . . 1 1 Combat 44 | . . . . . . . . 5 2 6 4 2 2 4 2 5 6 . . 6 . . . . . . . Robot Hacks Applied 139 | . . . . . . . . 5 4 7 22 2 18 4 23 5 31 . 1 11 4 . . . . 1 1 parse_system 1 | . . . . . . . . . . . . . . . 1 . . . . . . . . . . . . no_distress 6 | . . . . . . . . . . . 1 . 1 . 2 . 2 . . . . . . . . . . generate_anomaly 2 | . . . . . . . . . 1 . 1 . . . . . . . . . . . . . . . . generate_echo 2 | . . . . . . . . . . . 2 . . . . . . . . . . . . . . . . find_chute 1 | . . . . . . . . . . . . . . . . . 1 . . . . . . . . . . hold_bot 1 | . . . . . . . . . . . 1 . . . . . . . . . . . . . . . . ignore_repairs 5 | . . . . . . . . . . . . . . . . . 5 . . . . . . . . . . map_walls 4 | . . . . . . . . . 1 . . . 1 . 1 . 1 . . . . . . . . . . randomize_corridors 1 | . . . . . . . . . . . . . 1 . . . . . . . . . . . . . . map_earth 2 | . . . . . . . . . . . 1 . 1 . . . . . . . . . . . . . . find_fabricator 3 | . . . . . . . . . . . . . 1 . 1 . . . 1 . . . . . . . . find_dsf 1 | . . . . . . . . . . . . . . . 1 . . . . . . . . . . . . drop_inventory 2 | . . . . . . . . . . . 1 . 1 . . . . . . . . . . . . . . recall_reinforcements 2 | . . . . . . . . . . . . . . . 2 . . . . . . . . . . . . locate_stockpiles 1 | . . . . . . . . . . . . . . . . . 1 . . . . . . . . . . find_recycling 5 | . . . . . . . . . . . 1 . . . 2 . 2 . . . . . . . . . . ignore_parts 13 | . . . . . . . . . . . . . . . 8 . 5 . . . . . . . . . . deconstruct_bot 1 | . . . . . . . . . . . . . . . . . 1 . . . . . . . . . . map_route 4 | . . . . . . . . . . . 1 . 2 . . . 1 . . . . . . . . . . relay_feed 1 | . . . . . . . . . . . 1 . . . . . . . . . . . . . . . . redirect_shields 1 | . . . . . . . . . . . . . . . . . . . . . . . . . . 1 . ignore_targets 6 | . . . . . . . . . . 6 . . . . . . . . . . . . . . . . . find_garrison 2 | . . . . . . . . . . . 1 . 1 . . . . . . . . . . . . . . scatter_targeting 1 | . . . . . . . . . . . . . . . . . . . . 1 . . . . . . . spike_heat 1 | . . . . . . . . . . . . . . . . . 1 . . . . . . . . . . overload_power 1 | . . . . . . . . . . . 1 . . . . . . . . . . . . . . . . amplify_resonance 12 | . . . . . . . . . . 1 6 . . . 1 . 2 . . . 2 . . . . . . disable_weapons 9 | . . . . . . . . . 1 . . . 2 . . . 1 . . 5 . . . . . . . overwrite_iff 7 | . . . . . . . . . . . . . . . . . 2 . . 5 . . . . . . . streamctrl_low 1 | . . . . . . . . . . . . . 1 . . . . . . . . . . . . . . formatsys_low 15 | . . . . . . . . . . . 1 . 4 . 3 . 4 . . . 2 . . . . . 1 formatsys_high 24 | . . . . . . . . 5 1 . 3 2 2 4 . 5 2 . . . . . . . . . . formatsys_deep 1 | . . . . . . . . . . . . . . . 1 . . . . . . . . . . . . Relay Couplers Released 64 | . . . . . . . . 10 . . . 13 . 13 6 8 3 . . 9 . . . . . . 2 Machine Destruction 58 | . . . . . . . . 10 . . . 13 . 13 3 8 . . . 9 . . . . . . 2 Programmers 6 | . . . . . . . . . . . . . . . 3 . 3 . . . . . . . . . . Attached 30 | . . . . . . . . 4 . . 4 2 1 2 3 3 6 . . 3 . . . . . 1 1 Fabnet Peak Effective % . | . . . . . . . . . . . . . . . . . . . . . . . . . . . . Robots Rewired 7 | . . . . . . . . . 2 . . 2 . . . 1 . . . . . . . . 2 . . Allies Hacked 8 | . . . . . . . . 1 . . 1 . . . 3 . . . . . . . . . . . 3 Hacks Repelled 2 | . . . . . . . . . . . . . . . . . 1 . . . 1 . . . . . . Allies | -11 -10 -10 -9 -9 -9 -8 -8 -8 -7 -7 -7 -7 -6 -6 -6 -6 -5 -5 -5 -5 -4 -4 -4 -4 -3 -3 -3 -------- Run | Yrd Mat Min Mat Min Exi Min Mat Gar Fac Was Fac Gar Fac Gar Fac Gar Fac Was Fac Gar Fac Upp Upp Zhi Pro Res Qua Total Allies 133 | . . 5 . . . . . 7 3 2 8 4 14 7 34 6 18 . . 6 13 . . . 2 3 1 Largest Group 26 | . . 4 4 . . . . 6 6 4 4 4 10 8 22 16 26 . . 3 7 . . . 2 5 1 Highest-Rated Group 969 | . . 55 55 . . . . 115 129 128 85 80 376 408 869 587 969 . . 207 326 . . . 98 203 36 Highest-Rated Ally 119 | . . 31 16 . . . . 31 31 40 32 32 111 102 99 119 119 . . 80 54 . . . 49 49 36 Total Orders 75 | . . . . . . . . . . . 3 1 3 9 16 19 16 . . . 2 2 2 . . 1 1 STAY 10 | . . . . . . . . . . . 1 1 . 1 3 1 3 . . . . . . . . . . FOLLOW 10 | . . . . . . . . . . . 1 . . 2 2 4 1 . . . . . . . . . . GUARD 4 | . . . . . . . . . . . . . . 2 . 1 1 . . . . . . . . . . AID 25 | . . . . . . . . . . . 1 . 3 2 6 3 6 . . . 2 . . . . 1 1 DROP 10 | . . . . . . . . . . . . . . 1 3 4 2 . . . . . . . . . . PICKUP 6 | . . . . . . . . . . . . . . 1 2 3 . . . . . . . . . . . COLLECT 6 | . . . . . . . . . . . . . . . . 3 3 . . . . . . . . . . EXPLORE 4 | . . . . . . . . . . . . . . . . . . . . . . 2 2 . . . . Ally Attacks 966 | . . 9 13 . . . . 37 23 111 35 20 48 58 162 121 138 . . 29 97 . . . 21 44 . Total Damage 31872 | . . 168 127 . . . . 557 387 2685 565 265 1901 2025 6758 3448 4313 . . 1343 3281 . . . 1266 2783 . Kills 192 | . . 3 3 . . . . 4 2 5 7 3 16 13 44 11 34 . . 11 14 . . . 6 16 . Allies Corrupted 8 | . . . . . . . . . . 2 . . . 3 2 . 1 . . . . . . . . . . Allies Melted . | . . . . . . . . . . . . . . . . . . . . . . . . . . . . Intel | -11 -10 -10 -9 -9 -9 -8 -8 -8 -7 -7 -7 -7 -6 -6 -6 -6 -5 -5 -5 -5 -4 -4 -4 -4 -3 -3 -3 ------- Run | Yrd Mat Min Mat Min Exi Min Mat Gar Fac Was Fac Gar Fac Gar Fac Gar Fac Was Fac Gar Fac Upp Upp Zhi Pro Res Qua Robot Analysis Total 4 | . . . . . . . . . . . . . . . . . . . . . . . . 4 . . . Derelict Logs Recovered 5 | . . 1 . 2 . . . . . . . . . . . . . . . . . 1 1 . . . . Drone Launches 6 | . . . . . . . . . . . . . . . . . . . . . . 4 2 . . . . Drone Recoveries 4 | . . . . . . . . . . . . . . . . . . . . . . 3 1 . . . . Exploration | -11 -10 -10 -9 -9 -9 -8 -8 -8 -7 -7 -7 -7 -6 -6 -6 -6 -5 -5 -5 -5 -4 -4 -4 -4 -3 -3 -3 ------------- Run | Yrd Mat Min Mat Min Exi Min Mat Gar Fac Was Fac Gar Fac Gar Fac Gar Fac Was Fac Gar Fac Upp Upp Zhi Pro Res Qua Turns Passed 29645 | 138 473 1067 924 667 234 242 2428 2647 193 386 1850 1533 1659 1634 2206 1467 1509 55 739 491 2092 840 729 281 1591 1186 384 Spaces Moved 14256 | 94 198 406 364 423 234 216 683 1300 82 148 714 600 739 810 955 597 942 102 387 262 934 455 451 205 1024 626 305 Core 485 | 3 . . . . . . . . . . . . . . . . 242 102 12 . . . . . . . 126 Treads 4717 | . 150 406 305 240 . . 503 693 . 105 714 600 115 . . 488 395 . . . . . . . . . 3 Legs 7666 | . . . . . . . . 607 82 43 . . 624 810 955 109 . . 375 262 934 455 451 205 1024 626 104 Wheels 1209 | 91 48 . 59 183 234 216 180 . . . . . . . . . 198 . . . . . . . . . . Hover . | . . . . . . . . . . . . . . . . . . . . . . . . . . . . Flight 179 | . . . . . . . . . . . . . . . . . 107 . . . . . . . . . 72 Fastest Speed 32 | 50 100 240 150 98 98 98 95 120 190 190 162 162 162 120 120 150 45 50 50 112 114 120 120 120 120 120 32 Average Speed 145 | 98 192 240 159 137 98 98 146 151 190 227 216 162 186 145 171 160 113 50 123 115 119 120 120 120 120 120 72 Slowest Speed 400 | 100 240 240 240 240 98 98 160 190 190 243 243 243 400 190 190 305 320 50 260 190 190 120 120 120 120 190 260 Overloaded Moves . | . . . . . . . . . . . . . . . . . . . . . . . . . . . . Propulsion Burnouts . | . . . . . . . . . . . . . . . . . . . . . . . . . . . . Robots Hopped 2 | . . . . . . . . . . . . . . . . . . . . . . . . . . . 2 Cave-ins Triggered . | . . . . . . . . . . . . . . . . . . . . . . . . . . . . Teleports 1 | . . . . . . . . . . . . . . . . . . . . . . . . . . . 1 Exploration Rate (%) 51 | 6 53 66 42 89 62 56 58 84 2 93 20 46 17 77 25 54 32 72 13 43 24 97 81 63 96 16 43 Regions Visited 27 Branch Regions 9 Pre-discovered Areas 5 | . . 1 . . . . . . . . . . . . . . . . . . . . 1 3 . . . Known Exits Taken 6 | . . . . . . . 1 . . . 1 . 1 . 1 . . . 1 . 1 . . . . . . Unknown Exits Taken 12 | 1 1 1 1 1 1 1 . . . . . . . . . . . . . . . 1 1 1 1 1 . Scrap Searched 13 | . . 2 . 1 . 2 . . . . . . . . . . . . . . . 4 2 . 2 . . Spaces Dug 18 | . . . . . . . . . . . 3 . . . . . 13 . . . 2 . . . . . . Terrain Destroyed 601 | . . . 8 19 . . 8 17 . 7 35 . 18 . 27 . 94 . 2 10 22 17 22 . 58 161 76 Melee . | . . . . . . . . . . . . . . . . . . . . . . . . . . . . Projectile 165 | . . . 1 . . . . 1 . 7 19 . 18 . 1 . 51 . . . 22 17 22 . . 2 4 AOE 436 | . . . 7 19 . . 8 16 . . 16 . . . 26 . 43 . 2 10 . . . . 58 159 72 Terrain Rammed . | . . . . . . . . . . . . . . . . . . . . . . . . . . . . Walls Destroyed . | . . . . . . . . . . . . . . . . . . . . . . . . . . . . Machines Disabled . | . . . . . . . . . . . . . . . . . . . . . . . . . . . . Actions | -11 -10 -10 -9 -9 -9 -8 -8 -8 -7 -7 -7 -7 -6 -6 -6 -6 -5 -5 -5 -5 -4 -4 -4 -4 -3 -3 -3 --------- Run | Yrd Mat Min Mat Min Exi Min Mat Gar Fac Was Fac Gar Fac Gar Fac Gar Fac Was Fac Gar Fac Upp Upp Zhi Pro Res Qua Total 21428 | 120 247 449 607 459 239 228 1993 1845 115 181 946 1065 1000 1195 1466 1068 1255 104 580 407 1726 709 609 238 1278 890 409 Wait 4864 | . 10 5 107 . . . 1139 377 13 4 130 357 185 234 390 384 149 1 118 71 594 204 120 . 150 100 22 Move 14230 | 93 197 405 363 422 233 215 683 1299 82 147 713 599 738 809 954 596 942 101 387 261 933 454 450 204 1023 625 302 Hop 1 | . . . . . . . . . . . . . . . . . . . . . . . . . . . 1 Pick Up 267 | 9 7 8 22 2 1 1 29 13 3 3 5 15 8 23 15 11 13 . 13 13 17 4 2 6 8 11 5 Fast Attach 200 | 7 1 1 10 3 . . 12 11 . . 6 4 8 10 13 12 8 2 26 3 22 4 5 8 8 8 8 Attach 160 | . 2 . 6 4 1 . 10 7 2 5 7 6 7 14 13 2 11 . 8 6 14 4 2 2 4 10 13 Detach 33 | . . . 3 . . . 1 1 . . 3 3 . 7 3 . . . 1 . 2 2 . . 1 4 2 Swap 189 | 1 3 1 10 4 1 2 7 10 1 . 8 8 10 12 11 10 13 . 4 10 30 6 5 2 2 17 1 Drop 336 | 2 5 3 27 1 3 1 39 21 2 6 7 14 11 31 13 22 7 . 1 11 34 12 12 14 11 18 8 Fire 1037 | 8 22 26 57 23 . 9 70 98 12 16 63 59 31 49 48 31 88 . 22 32 76 19 13 2 35 97 31 Melee 39 | . . . . . . . . . . . . . . . . . . . . . 3 . . . 27 . 9 Ram 4 | . . . . . . . 1 . . . . . . . . . 1 . . . . . . . . . 2 Kick 4 | . . . . . . . . . . . . . 1 . 1 . . . . . 1 . . . . . 1 Crush 20 | . . . 2 . . . 2 . . . 2 . . . . . 10 . . . . . . . . . 4 Escape Stasis 28 | . . . . . . . . 7 . . . . . 5 5 . 11 . . . . . . . . . . Rewire 16 | . . . . . . . . 1 . . 2 . 1 1 . . 2 . . . . . . . 9 . . Trap . | . . . . . . . . . . . . . . . . . . . . . . . . . . . . Miscellaneous . | . . . . . . . . . . . . . . . . . . . . . . . . . . . . Route ------- -11/Scrapyard -10/Materials (discovered 3 exits: *Mat x2 / [*Min]) -10/Mines (discovered 2 exits: *Mat x2) -9/Materials (discovered 3 exits: *Min / [*Sto x2]) -9/Mines (discovered 4 exits: *Mat x2 / *Exi / [*Zio]) -9/Exiles -8/Mines -8/Materials (discovered 2 exits: [*Fac] / Gar) -8/Garrison (discovered 3 exits: [*Fac x3]) -7/Factory -7/Waste -7/Factory (discovered 2 exits: *Low / Gar) -7/Garrison -6/Factory -6/Garrison (discovered 3 exits: *Fac x3) -6/Factory (discovered 4 exits: *Fac x2 / [*Low] / Gar) -6/Garrison -5/Factory (discovered 5 exits: *Fac / *Upp x2 / Ext x2) -5/Waste -5/Factory -5/Garrison -4/Factory (discovered 4 exits: *Res x2 / *Upp x2) -4/Upper Caves -4/Upper Caves (discovered 2 exits: *Res / *Zhi) -4/Zhirov -3/Proximity Caves -3/Research (discovered 2 exits: Res / [*Qua]) -3/Quarantine History --------- Turn | Location | Event 2 | -11/Scrapyard | Met Revision 17 10 | -11/Scrapyard | Discovered new exit (range 15) 139 | -11/Scrapyard | Entered Materials 305 | -10/Materials | Discovered new exit (range 8) 313 | -10/Materials | Build established: Mutant 421 | -10/Materials | Discovered new exit (range 11) 506 | -10/Materials | Discovered new exit (range 16) 612 | -10/Materials | Entered Mines 742 | -10/Mines | Learned location of Zion (-7) 1171 | -10/Mines | Discovered new exit (range 5) 1511 | -10/Mines | Discovered new exit (range 10) 1571 | -10/Mines | Assisted by bots powering up and referring to "LRC-V3" 1679 | -10/Mines | Entered Materials 1679 | -9/Materials | Accompanied by 4 allies 1679 | -9/Materials | Evolved 2 slots: Propulsion x1, Utility x1 1763 | -9/Materials | Repaired Lgt. Treads 1790 | -9/Materials | Repaired Assault Rifle 1819 | -9/Materials | Repaired Weapon Shielding 1900 | -9/Materials | Lost 4 allies 1959 | -9/Materials | Discovered new exit (range 7) 2159 | -9/Materials | Discovered new exit (range 10) 2203 | -9/Materials | Build established: Scavenger-Mutant 2410 | -9/Materials | Discovered new exit (range 12) 2518 | -9/Materials | Build established: Mutant 2603 | -9/Materials | Entered Mines 2641 | -9/Mines | Met a Derelict bent on vengeance 2687 | -9/Mines | Discovered new exit (range 15) 2752 | -9/Mines | Discovered new exit (range 8) 2974 | -9/Mines | Assembled infested the area 2979 | -9/Mines | Assisted by a Guerilla fighting off Assembled 3011 | -9/Mines | Core integrity fell below 50% 3044 | -9/Mines | Core integrity fell below 20% 3061 | -9/Mines | Lost 5 parts (3n1u1w) 3076 | -9/Mines | Destroyed 16 combat bots 3195 | -9/Mines | A Derelict revealed a hidden shortcut to a safe place 3266 | -9/Mines | Deemed a non-threat by the Exiles lab entrance 3266 | -9/Mines | Discovered new exit (range 5) 3270 | -9/Mines | Entered Exiles 3294 | -9/Exiles | Met 8R-AWN 3311 | -9/Exiles | Met EX-HEX 3340 | -9/Exiles | Met EX-BIN 3357 | -9/Exiles | Aligned with FarCom system 3358 | -9/Exiles | Given EX-Vault access code 3381 | -9/Exiles | Opened EX-Vault 3386 | -9/Exiles | Found AWS/Gauss 3407 | -9/Exiles | Warned to stay clear of 0b10 Research branches 3433 | -9/Exiles | Met EX-DEC 3490 | -9/Exiles | Discovered new exit (range 15) 3504 | -9/Exiles | Left Exiles lab with AWS/Gauss 3504 | -9/Exiles | Entered Mines 3734 | -8/Mines | Discovered new exit (range 8) 3746 | -8/Mines | Entered Materials 3746 | -8/Materials | Evolved 2 slots: Propulsion x1, Utility x1 4312 | -8/Materials | Discovered new exit (range 5) 5098 | -8/Materials | Repaired Hvy. EM Shotgun 5131 | -8/Materials | Repaired Imp. Treads 5159 | -8/Materials | Repaired Lgt. Treads 6174 | -8/Materials | Identified exit to Garrison 6174 | -8/Materials | Entered Garrison 6312 | -8/Garrison | Spotted B-75 Beast 6366 | -8/Garrison | Triggered checkpoint 6874 | -8/Garrison | Triggered checkpoint 6899 | -8/Garrison | Core integrity fell below 50% 6994 | -8/Garrison | Discovered new exit (range 10) 7309 | -8/Garrison | Discovered new exit (range 11) 7417 | -8/Garrison | Rescued a captive Derelict 7426 | -8/Garrison | Rescued a captive Derelict 7716 | -8/Garrison | Installed Relay Interface Framework 7748 | -8/Garrison | Discovered new exit (range 8) 8072 | -8/Garrison | System corruption reached 10% 8110 | -8/Garrison | Garrison Relay disabled 8160 | -8/Garrison | Triggered checkpoint 8348 | -8/Garrison | Triggered checkpoint 8406 | -8/Garrison | Garrison Relay disabled 8426 | -8/Garrison | Build established: Bothacker-Mutant 8468 | -8/Garrison | Triggered checkpoint 8470 | -8/Garrison | Core integrity fell below 20% 8496 | -8/Garrison | Garrison Relay disabled 8648 | -8/Garrison | Spotted B-75 Beast 8668 | -8/Garrison | Allies destroyed B-75 Beast 8821 | -8/Garrison | Entered Factory 8821 | -7/Factory | Accompanied by 5 allies 8821 | -7/Factory | Evolved 2 slots: Utility x1, Weapon x1 8822 | -7/Factory | Identified exit to Lower Caves 9003 | -7/Factory | Lost 4 allies 9014 | -7/Factory | Sucked down chute 9014 | -7/Factory | Entered Waste 9014 | -7/Waste | Met up with 2 allies sucked down the chute earlier 9019 | -7/Waste | 1 allies followed down the chute 9025 | -7/Waste | Spotted C-40 Crusher 9026 | -7/Waste | Spotted C-40 Crusher 9029 | -7/Waste | 1 allies followed down the chute 9029 | -7/Waste | EMP discharged 9046 | -7/Waste | Spotted C-40 Crusher 9059 | -7/Waste | Allies destroyed C-40 Crusher 9072 | -7/Waste | Allies destroyed C-40 Crusher 9085 | -7/Waste | Allies destroyed C-40 Crusher 9086 | -7/Waste | Spotted C-40 Crusher 9105 | -7/Waste | Spotted C-40 Crusher 9109 | -7/Waste | Spotted C-40 Crusher 9114 | -7/Waste | Allies destroyed C-40 Crusher 9126 | -7/Waste | Build established: Bothacker-Tank 9129 | -7/Waste | EMP discharged 9229 | -7/Waste | EMP discharged 9229 | -7/Waste | System corruption reached 10% 9262 | -7/Waste | Destroyed C-40 Crusher 9282 | -7/Waste | Found Damper Plating 9329 | -7/Waste | EMP discharged 9366 | -7/Waste | Discovered new exit (range 11) 9400 | -7/Waste | Entered Factory 9400 | -7/Factory | Accompanied by 1 ally 10004 | -7/Factory | AWS/Gauss suddenly broke down 10045 | -7/Factory | Lost 3 allies 10130 | -7/Factory | Fabricated M-13 Machinist (x1) 10424 | -7/Factory | Build established: Scavenger-Skirmisher 10525 | -7/Factory | AWS/Gauss suddenly broke down 10742 | -7/Factory | Discovered exit to Lower Caves (range 79) 10804 | -7/Factory | Repaired Lgt. Treads 11108 | -7/Factory | Build established: Scavenger-Tank 11243 | -7/Factory | Identified exit to Garrison 11250 | -7/Factory | Entered Garrison 11250 | -7/Garrison | Accompanied by 3 allies 11296 | -7/Garrison | Triggered checkpoint 11315 | -7/Garrison | Garrison Relay disabled 11402 | -7/Garrison | Expanded RIF knowledge: Structural Interface 11785 | -7/Garrison | Triggered checkpoint 11880 | -7/Garrison | Build established: Bothacker-Skirmisher 12356 | -7/Garrison | Build established: Bothacker-Tank 12448 | -7/Garrison | Triggered checkpoint 12460 | -7/Garrison | Garrison Relay disabled 12518 | -7/Garrison | Garrison Relay disabled 12715 | -7/Garrison | Discovered new exit (range 12) 12783 | -7/Garrison | Entered Factory 12783 | -6/Factory | Accompanied by 1 ally 12783 | -6/Factory | Evolved 2 slots: Power x1, Utility x1 12821 | -6/Factory | Build established: Bothacker-Skirmisher 13389 | -6/Factory | Fabricated O-16 Technician? 13639 | -6/Factory | AWS/Gauss suddenly broke down 13813 | -6/Factory | AWS/Gauss suddenly broke down 14009 | -6/Factory | Fabricated H-66 Slayer (x2) 14029 | -6/Factory | AWS/Gauss suddenly broke down 14074 | -6/Factory | Fabricated M-28 Smith (x1) 14147 | -6/Factory | Fabricated P-60 Hacker? 14304 | -6/Factory | Build established: Commander-Skirmisher 14357 | -6/Factory | Identified exit to Garrison 14362 | -6/Factory | Garrison activated, responded to threat 14364 | -6/Factory | Cargo convoy interrupted 14412 | -6/Factory | Lost 4 allies 14442 | -6/Factory | Entered Garrison 14442 | -6/Garrison | Accompanied by 6 allies 14445 | -6/Garrison | Found Prototype Device 14447 | -6/Garrison | Identified Adv. EM Disruption Field 14472 | -6/Garrison | Found Prototype Hackware 14498 | -6/Garrison | Found Adv. EM Disruption Field 14581 | -6/Garrison | Triggered checkpoint 14582 | -6/Garrison | Garrison Relay disabled 14630 | -6/Garrison | Triggered checkpoint 14898 | -6/Garrison | Triggered checkpoint 14899 | -6/Garrison | AWS/Gauss suddenly broke down 14922 | -6/Garrison | Triggered checkpoint 14929 | -6/Garrison | Destroyed 10 combat bots 14930 | -6/Garrison | Build established: Commander-Tank 15139 | -6/Garrison | Triggered checkpoint 15198 | -6/Garrison | Garrison Relay disabled 15216 | -6/Garrison | Triggered checkpoint 15217 | -6/Garrison | AWS/Gauss suddenly broke down 15255 | -6/Garrison | AWS/Gauss suddenly broke down 15399 | -6/Garrison | Lost 3 parts (3p) 15408 | -6/Garrison | Destroyed 13 combat bots 15431 | -6/Garrison | Expanded RIF knowledge: Patrol Navigation 15585 | -6/Garrison | Discovered new exit (range 9) 15611 | -6/Garrison | Rescued a captive Derelict 15619 | -6/Garrison | Rescued a captive Derelict 15690 | -6/Garrison | Triggered checkpoint 15793 | -6/Garrison | Discovered new exit (range 10) 15824 | -6/Garrison | Triggered checkpoint 15835 | -6/Garrison | Garrison Relay disabled 15857 | -6/Garrison | Found embedded Infiltrators 15905 | -6/Garrison | Spotted B-75 Beast 15914 | -6/Garrison | Destroyed B-75 Beast 15977 | -6/Garrison | Discovered new exit (range 23) 15977 | -6/Garrison | Discovered new exit (range 55) 15977 | -6/Garrison | Discovered new exit (range 50) 16076 | -6/Garrison | Entered Factory 16076 | -6/Factory | Accompanied by 8 allies 16183 | -6/Factory | Identified exit to Garrison 16307 | -6/Factory | Fabricated G-50 Soldier (x3) 16347 | -6/Factory | Fabricated M-28 Smith (x1) 16376 | -6/Factory | Fabricated O-16 Technician (x1) 16406 | -6/Factory | Fabricated H-66 Slayer (x2) 16426 | -6/Factory | First assault squad dispatched 16431 | -6/Factory | Fabricated P-60 Hacker (x2) 16459 | -6/Factory | Fabricated H-66 Slayer (x2) 16489 | -6/Factory | Fabricated H-66 Slayer (x2) 16572 | -6/Factory | Hacker 5d assimilated hostile G-67 Veteran 16573 | -6/Factory | AWS/Gauss suddenly broke down 16709 | -6/Factory | Assimilated ARC 5a with formatsys_deep 16819 | -6/Factory | Lost 6 allies 16916 | -6/Factory | Discovered new exit (range 5) 16918 | -6/Factory | AWS/Gauss suddenly broke down 16934 | -6/Factory | AWS/Gauss suddenly broke down 17147 | -6/Factory | Discovered new exit (range 12) 17154 | -6/Factory | AWS/Gauss suddenly broke down 17165 | -6/Factory | AWS/Gauss suddenly broke down 17287 | -6/Factory | Repaired Rnf. Deuterium Engine 17298 | -6/Factory | AWS/Gauss suddenly broke down 17739 | -6/Factory | Fabricated H-66 Slayer (x2) 17779 | -6/Factory | Lost 7 allies 17791 | -6/Factory | Fabricated M-28 Smith (x1) 17835 | -6/Factory | Fabricated H-66 Slayer (x2) 17885 | -6/Factory | Fabricated P-60 Hacker (x2) 17916 | -6/Factory | Fabricated M-28 Smith (x1) 17960 | -6/Factory | Fabricated H-66 Slayer (x2) 18041 | -6/Factory | AWS/Gauss suddenly broke down 18084 | -6/Factory | AWS/Gauss suddenly broke down 18087 | -6/Factory | Hacker 5f assimilated hostile H-66 Slayer 18204 | -6/Factory | Discovered new exit (range 10) 18256 | -6/Factory | Identified exit to Garrison 18282 | -6/Factory | Entered Garrison 18282 | -6/Garrison | Accompanied by 16 allies 18308 | -6/Garrison | Triggered checkpoint 18311 | -6/Garrison | Spotted Striker 18313 | -6/Garrison | Spotted Executioner 18326 | -6/Garrison | Allies destroyed Striker 18341 | -6/Garrison | Allies destroyed Executioner 18370 | -6/Garrison | Lost 4 allies 18464 | -6/Garrison | Rewired Executioner 18549 | -6/Garrison | Spotted B-75 Beast 18553 | -6/Garrison | Allies destroyed B-75 Beast 19118 | -6/Garrison | Garrison Relay disabled 19204 | -6/Garrison | Spotted B-75 Beast 19227 | -6/Garrison | Allies destroyed B-75 Beast 19228 | -6/Garrison | Triggered checkpoint 19270 | -6/Garrison | Triggered checkpoint 19284 | -6/Garrison | Triggered checkpoint 19360 | -6/Garrison | Triggered checkpoint 19379 | -6/Garrison | Garrison Relay disabled 19561 | -6/Garrison | Found Fusion Bomb Launcher 19581 | -6/Garrison | Build established: Commander-Skirmisher 19652 | -6/Garrison | Discovered new exit (range 4) 19681 | -6/Garrison | Expanded RIF knowledge: Program Shield 19749 | -6/Garrison | Entered Factory 19749 | -5/Factory | Accompanied by 12 allies 19749 | -5/Factory | Evolved 2 slots: Utility x2 19750 | -5/Factory | Identified Exp. Hacking Suite 19886 | -5/Factory | Fabricated M-28 Smith (x1) 19973 | -5/Factory | Fabricated H-66 Slayer? 20040 | -5/Factory | Build established: Commander-Tank 20049 | -5/Factory | First assault squad dispatched 20137 | -5/Factory | Identified exit to Upper Caves 20137 | -5/Factory | Identified exit to Extension 20501 | -5/Factory | Build established: Commander-Skirmisher 20524 | -5/Factory | Fabricated P-70 Sage? 20598 | -5/Factory | Fabricated H-66 Slayer (x2) 20631 | -5/Factory | Fabricated M-28 Smith? 20700 | -5/Factory | Fabricated H-66 Slayer? 20737 | -5/Factory | Lost 3 allies 20822 | -5/Factory | Garrison activated, responded to threat 20955 | -5/Factory | P-80 Master assimilated allied Conveyor 6b 20987 | -5/Factory | Spotted B-75 Beast 21004 | -5/Factory | Identified exit to Garrison 21062 | -5/Factory | Lost 4 allies 21076 | -5/Factory | Released all parts (7) 21106 | -5/Factory | Lost 9 parts (1p3n3u2w) 21116 | -5/Factory | Discovered new exit (range 16) 21227 | -5/Factory | Core integrity fell below 50% 21258 | -5/Factory | Sucked down chute 21258 | -5/Factory | Entered Waste 21260 | -5/Waste | Spotted C-40 Crusher 21262 | -5/Waste | Spotted C-40 Crusher 21262 | -5/Waste | Spotted C-40 Crusher 21266 | -5/Waste | Spotted C-40 Crusher 21286 | -5/Waste | Crushed by Compactor (1 part destroyed) 21286 | -5/Waste | Spotted C-40 Crusher 21286 | -5/Waste | Spotted C-40 Crusher 21296 | -5/Waste | Discovered new exit (range 16) 21313 | -5/Waste | Entered Factory 21361 | -5/Factory | Identified exit to DSF 22006 | -5/Factory | Build established: Scavenger-Skirmisher 22052 | -5/Factory | Identified exit to Garrison 22052 | -5/Factory | Entered Garrison 22065 | -5/Garrison | Found embedded Infiltrators 22086 | -5/Garrison | Triggered checkpoint 22116 | -5/Garrison | Garrison Relay disabled 22160 | -5/Garrison | Garrison Relay disabled 22232 | -5/Garrison | Triggered checkpoint 22240 | -5/Garrison | Triggered checkpoint 22334 | -5/Garrison | Core integrity fell below 20% 22442 | -5/Garrison | Expanded RIF knowledge: Code Merge 22516 | -5/Garrison | Discovered new exit (range 9) 22542 | -5/Garrison | Identified exit to Factory 22543 | -5/Garrison | Entered Factory 22543 | -4/Factory | Evolved 2 slots: Propulsion x1, Weapon x1 23136 | -4/Factory | Fabricated P-70 Sage (x2) 23217 | -4/Factory | Fabricated H-66 Slayer? 23309 | -4/Factory | Fabricated H-66 Slayer (x2) 23394 | -4/Factory | Fabricated P-70 Sage (x2) 23475 | -4/Factory | Spotted B-86 Titan 23490 | -4/Factory | Destroyed B-86 Titan 24113 | -4/Factory | Lost 3 allies 24170 | -4/Factory | Discovered new exit (range 21) 24311 | -4/Factory | Found Hvy. Insulated Plating 24314 | -4/Factory | Found Hvy. Insulated Plating 24404 | -4/Factory | Discovered new exit (range 17) 24411 | -4/Factory | Identified exit to Upper Caves 24461 | -4/Factory | Garrison activated, responded to threat 24568 | -4/Factory | Lost 5 parts (3n1u1w) 24635 | -4/Factory | Entered Upper Caves 24691 | -4/Upper Caves | Learned 4 Research zone layouts 25224 | -4/Upper Caves | Discovered new exit (range 51) 25475 | -4/Upper Caves | Entered another Upper Caves area 25581 | -4/Upper Caves | Discovered new exit (range 9) 25590 | -4/Upper Caves | Found DCF Scrap (9 items) 25670 | -4/Upper Caves | Attracted the attention of an 0b10 checkpoint 25841 | -4/Upper Caves | Spotted B-86 Titan 25873 | -4/Upper Caves | Learned location of Quarantine (-3) 25989 | -4/Upper Caves | Build established: Scavenger-Tank 26180 | -4/Upper Caves | Discovered new exit (range 2) 26204 | -4/Upper Caves | Entered Zhirov 26204 | -4/Zhirov | Discovered new exit (range 3) 26226 | -4/Zhirov | Met Zhirov 26248 | -4/Zhirov | Learned location of Testing (-2) 26248 | -4/Zhirov | Learned location of Command (-1) 26269 | -4/Zhirov | Zhirov requested help retrieving the SGEMP Prototype 26309 | -4/Zhirov | Found Alien Artifact 26323 | -4/Zhirov | Found Alien Artifact 26324 | -4/Zhirov | Identified Integrated Dissipator 26324 | -4/Zhirov | Installed Integrated Dissipator, increased core heat dissipation (+20) 26485 | -4/Zhirov | Entered Proximity Caves 26663 | -3/Proximity Caves | Discovered new exit (range 21) 26823 | -3/Proximity Caves | Found Prototype Launcher 26823 | -3/Proximity Caves | Identified Gui. Missile Launcher 26875 | -3/Proximity Caves | Build established: Tank 26939 | -3/Proximity Caves | Found Gui. Missile Launcher 27336 | -3/Proximity Caves | Attracted the attention of an 0b10 checkpoint 27483 | -3/Proximity Caves | Build established: Scavenger-Tank 27566 | -3/Proximity Caves | Spotted B-86 Titan 27581 | -3/Proximity Caves | Allies destroyed B-86 Titan 28076 | -3/Proximity Caves | Entered Research 28076 | -3/Research | Accompanied by 2 allies 28076 | -3/Research | Evolved 2 slots: Power x1, Utility x1 28077 | -3/Research | Identified exit to Research 28127 | -3/Research | Fabricated M-28 Smith (x1) 28169 | -3/Research | Fabricated H-66 Slayer (x2) 28260 | -3/Research | Found Prototype Protection 28430 | -3/Research | Lost 3 allies 28729 | -3/Research | Build established: Scavenger-Gunner 28826 | -3/Research | First assault squad dispatched 29051 | -3/Research | Destroyed 9 combat bots 29055 | -3/Research | Spotted B-86 Titan 29096 | -3/Research | Found Gamma Bomb Array 29189 | -3/Research | Discovered new exit (range 13) 29262 | -3/Research | Entered Quarantine 29263 | -3/Quarantine | Maximum security lockdown engaged 29362 | -3/Quarantine | Lost 11 parts (4p2n2u3w) 29436 | -3/Quarantine | Spotted Striker 29471 | -3/Quarantine | Found Fusion Bomb Launcher 29480 | -3/Quarantine | Destroyed Striker 29505 | -3/Quarantine | Core integrity fell below 50% 29511 | -3/Quarantine | Identified Transdimensional Reconstructor 29511 | -3/Quarantine | Warped through subspace 29558 | -3/Quarantine | System corruption reached 10% 29583 | -3/Quarantine | Core integrity fell below 20% 29621 | -3/Quarantine | Lost 12 parts (1p4n4u3w) 29642 | -3/Quarantine | Found Alien Artifact 29646 | -3/Quarantine | Destroyed by Y-72 Warden with Quantum Rifle Last Messages --------------- 29613_ I-47 Archangel unfolds itself. 29613_ Acquired Unknown Flight Unit. 29613_ Identified Cesium-ion Thruster. 29617_ Cesium-ion Thruster blown off. 29617_ Relay Coupler [NC] blown off. 29617_ Adv. Corruption Screen blown off. 29617_ E-15 Imp destroyed. 29617_ Acquired Cesium-ion Thruster. 29618_ C-30 ARC bursts open, deploying its payload. 29618_ G-73 Enforcer unfolds itself. 29618_ L-61 Swordsman unfolds itself. 29618_ G-67 Veteran unfolds itself. 29618_ L-61 Swordsman unfolds itself. 29618_ I-47 Archangel unfolds itself. 29620_ Acquired Prototype Flight Unit. 29620_ Identified Electron Diverter. 29630_ TB9SWKXIB3BFFKA4:90PHW 29639_ Suspension Chamber breached. 29642_ Acquired Alien Artifact. Map ----- +----------------------------------------------------+ | | | | | | | | | | | | | | | | | | | | | | | | | | | ##########????????###############????????????????? | | #????????# #????????????????? | | #????????# " #????????????????? | | """ """ #????????# " " #????????????????? | | """ """ #????????# """ #????????????????? | | """ """ #????????# """ #????????????????? | | #????????# """ #????????????????? | | #????????# " T #????????????????? | | #????????# " #????????????????? | | ############### #????????????????? | | p "+% #????????????????? | | ############# #????????????????? | | # #??????????##+####@#######????????????????? | | ## ##??????????????? #?????????????????????? | | ### #?????????????? #?????????????????????? | | "" ####???????Y? #?????????????????????? | | % " #???????Y #?????????????????????? | | " ####??????#Y #?????????????????????? | | ## #?????????#### #?????????????????????? | | #????????????# #?????????????????????? | | "##????????????# w #?????????????????????? | | #?????????????# #?????????????????????? | | ""#?????????????# #?????????????????????? | | "" #?????????????# #?????????????????????? | | ####?????????????# #?????????????????????? | | #????????????????# ??????????????????????? | | #??????????????????## ??????????????????????? | | #???????????????????? ??????????????????????? | | ###?????????????????h??????????g?????????????????? | | ????????????????????h?????????C??????????????????? | | ##########???????????????????????????????????????? | | +???????????????????????????????????????? | | #???????????????????????????????????????? | | +???????????????????????????????????????? | | #???????????????????????????????????????? | | ##### #???????????????????????????????????????? | | #???? #???????????????????????????????????????? | +----------------------------------------------------+ Best States ------------- Heat Dissipation 130 Coolant Potential 80 Energy Generation 57 Energy Capacity 1000 Matter Stores 450 Matter Capacity 600 Sight Range 22 Terrain Scan Range 20 Terrain Scan Density 210 Jamming Range 16 Additional Mass Support 16 EM Shielding 3 Corruption Block 20 Armor Coverage 600 Resistance: KI 20 Resistance: TH 50 Resistance: EX 20 Resistance: EM 70 Resistance: I 20 Resistance: S 20 Resistance: P 20 Power Shielding 90 Propulsion Shielding 66 Weapon Shielding 66 Phase Shifting 10 Evasion (%) 63 Targeting Accuracy 16 Launcher Accuracy 30 Armor Integrity Analysis 40 Recoil Reduction 4 Matter Filtering 50 Offensive Hacking 26 Defensive Hacking 11 Relay Coupler Types 2 Relay Coupler Value 96 Authchip Count 5 Item Schematics ----------------- Hacking Suite | -8/Materials | Scanalyzed Terrain Scan Processor | -8/Materials | Extracted Hardlight Generator | -7/Factory | Scanalyzed Imp. Cooling System | -7/Factory | Scanalyzed Imp. Weapon Shielding | -7/Factory | Scanalyzed Missile Launcher | -7/Factory | Scanalyzed Hyb. Deuterium Engine | -7/Factory | Scanalyzed Adv. Targeting Computer | -7/Factory | Scanalyzed Shield Generator | -7/Factory | Scanalyzed Imp. Dynamic Insulation System | -7/Factory | Scanalyzed Flexi-carbon Leg | -4/Factory | Scanalyzed Assault Drone Bay | -4/Zhirov | Free Exp. Heat Sink | -4/Zhirov | Free Exp. Optical Array | -4/Zhirov | Free Imp. Arc Thrower | -4/Zhirov | Free Robot Schematics ------------------ M-13 Machinist | -10/Materials | Hacked O-16 Technician | -10/Materials | Hacked M-28 Smith | -8/Materials | Hacked H-66 Slayer | -6/Factory | Hacked P-60 Hacker | -6/Factory | Hacked P-70 Sage | -5/Factory | Hacked Fabricated ------------ M-13 Machinist | x1 | -7/Factory O-16 Technician | x1 | -6/Factory | Authchip H-66 Slayer | x2 | -6/Factory | Authchip M-28 Smith | x1 | -6/Factory | Authchip P-60 Hacker | x2 | -6/Factory | Authchip G-50 Soldier | x3 | -6/Factory | Preloaded, Authchip M-28 Smith | x1 | -6/Factory | Authchip O-16 Technician | x1 | -6/Factory | Authchip H-66 Slayer | x2 | -6/Factory | Authchip P-60 Hacker | x2 | -6/Factory | Authchip H-66 Slayer | x2 | -6/Factory | Authchip H-66 Slayer | x2 | -6/Factory | Authchip H-66 Slayer | x2 | -6/Factory | Authchip M-28 Smith | x1 | -6/Factory | Authchip H-66 Slayer | x2 | -6/Factory | Authchip P-60 Hacker | x2 | -6/Factory | Authchip M-28 Smith | x1 | -6/Factory | Authchip H-66 Slayer | x2 | -6/Factory | Authchip M-28 Smith | x1 | -5/Factory | Authchip H-66 Slayer | x2 | -5/Factory | Authchip P-70 Sage | x2 | -5/Factory | Authchip H-66 Slayer | x2 | -5/Factory | Authchip M-28 Smith | x1 | -5/Factory | Authchip H-66 Slayer | x2 | -5/Factory | Authchip P-70 Sage | x2 | -4/Factory | Authchip H-66 Slayer | x2 | -4/Factory | Authchip H-66 Slayer | x2 | -4/Factory | Authchip P-70 Sage | x2 | -4/Factory | Authchip M-28 Smith | x1 | -3/Research | Authchip H-66 Slayer | x2 | -3/Research | Authchip Alien Tech Used ----------------- Integrated Dissipator Transdimensional Reconstructor Achievements -------------- None Challenges ------------ None Game ------ Seed HypercooledTitaniumSheargun Manual? 0 Play Time 04:43:21 Cumulative 648.7 hours Start 2024.08.29 @ 11:17:30 End 2024.08.29 @ 15:58:15 Sessions 1 Manual Loads 0 Difficulty Adventurer Special Mode None Game No. 135 Rogue 0 Adventurer 135 Explorer 0 Win Type - Total 9 Types 6/0/1/2/0/0/0/0/0 Lore% 76 Gallery% 82 Achievement% 72 Wizard Run 0 Options --------- Layout 2 ASCII 0 Keyboard 0 Movement Mouse Keybinds 0 Fullscreen 1 Font 24/Smallcaps Map View 50x49 Zoom Use 0% Tactical HUD 1 Map Filters NONE Filters NONE Steam 1 RUN: b52edc71-f8c2-44af-ae4e-8e6c65fb3b2b